fUSD/lending_fUSD_20240718
["ID","MTS","AMOUNT","RATE_DAILY","PERIOD"]
[332505940,1721278297503,-796.62,0.00023013,2]
[332505941,1721278297512,-500.0,0.00023013,2]
[332505942,1721278297522,-500.0,0.00023013,2]
[332505943,1721278297532,-500.0,0.00023013,2]
[332505944,1721278297542,-957.75,0.00023013,2]
[332505945,1721278297552,-693.25,0.00023013,2]
[332505946,1721278297562,-823.01,0.00023013,2]
[332505947,1721278297572,-764.33,0.00023013,2]
[332505948,1721278297582,-500.0,0.00023013,2]
[332505949,1721278297592,-500.0,0.00023013,2]
[332505950,1721278297602,-164.1714457,0.00023013,2]
[332505951,1721278297613,-882.46,0.00023013,2]
[332505952,1721278297623,-500.0,0.00023013,2]
[332505953,1721278297633,-500.0,0.00023013,2]
[332505954,1721278297643,-500.0,0.00023013,2]
[332505955,1721278297653,-578.89,0.00023013,2]
[332505956,1721278297663,-500.0,0.00023013,2]
[332505957,1721278297673,-1452.14,0.00023013,2]
[332505958,1721278297683,-500.0,0.00023013,2]
[332505959,1721278297693,-500.0,0.00023013,2]
[332505960,1721278297702,-671.89,0.00023013,2]
[332505961,1721278297713,-500.0,0.00023013,2]
[332505962,1721278297723,-1112.7,0.00023013,2]
[332505963,1721278297733,-1197.13,0.00023013,2]
[332505964,1721278297744,-1138.95,0.00023013,2]
[332505965,1721278297754,-568.53,0.00023013,2]
[332505966,1721278297764,-535.62,0.00023013,2]
[332505967,1721278297775,-500.0,0.00023013,2]
[332505968,1721278297785,-500.0,0.00023013,2]
[332505969,1721278297795,-802.16,0.00023013,2]
[332505970,1721278297805,-820.21,0.00023013,2]
[332505971,1721278297815,-500.0,0.00023013,2]
[332505972,1721278297825,-557.41,0.00023013,2]
[332505973,1721278297835,-1057.79,0.00023013,2]
[332505974,1721278297846,-500.0,0.00023013,2]
[332505975,1721278297856,-500.0,0.00023013,2]
[332505976,1721278297868,-501.7,0.00023013,2]
[332505977,1721278297878,-516.5,0.00023013,2]
[332505978,1721278297891,-1231.33,0.00023013,2]
[332505979,1721278297903,-151.0,0.00023013,7]
[332505980,1721278297914,-156.91156602,0.00023013,2]
[332505981,1721278297924,-618.81,0.00023013,2]
[332505982,1721278297936,-661.58,0.00023013,2]
[332505983,1721278297947,-601.66,0.00023013,2]
[332505984,1721278297957,-462.3812934,0.00023013,2]
[332505985,1721278297968,-500.0,0.00023013,2]
[332505986,1721278297978,-723.63,0.00023013,2]
[332505987,1721278297988,-572.25,0.00023013,2]
[332505988,1721278297999,-472.836208,0.00023013,7]
[332505989,1721278298008,-500.0,0.00023013,2]
[332505990,1721278298018,-329.52275427,0.00023013,2]
[332505991,1721278298029,-1808.89,0.00023013,2]
[332505992,1721278298039,-472.836208,0.00023013,7]
[332505993,1721278298051,-834.24,0.00023013,2]
[332505994,1721278298062,-595.92,0.00023013,2]
[332505995,1721278298072,-660.9,0.00023013,2]
[332505996,1721278298082,-502.16033383,0.00023013,2]
[332505997,1721278298093,-597.08,0.00023013,2]
[332505998,1721278298103,-1460.06,0.00023013,2]
[332505999,1721278298117,-459.89627,0.00023013,7]
[332506000,1721278298128,-1459.23,0.00023013,2]
[332506001,1721278298138,-313.67366712,0.00023013,2]
[332506002,1721278298148,-500.0,0.00023013,2]
[332506003,1721278298158,-2572.0,0.00023013,2]
[332506004,1721278298168,-459.89627,0.00023013,7]
[332506005,1721278298178,-541.21853331,0.00023013,2]
[332506006,1721278298188,-500.0,0.00023013,2]
[332506007,1721278298199,-832.85,0.00023013,2]
[332506008,1721278298208,-755.9,0.00023013,2]
[332506009,1721278298219,-500.0,0.00023013,2]
[332506010,1721278298230,-500.0,0.00023013,2]
[332506011,1721278298240,-1423.26,0.00023013,2]
[332506012,1721278298251,-500.0,0.00023013,2]
[332506013,1721278298261,-1742.5,0.00023013,2]
[332506014,1721278298272,-500.0,0.00023013,2]
[332506015,1721278298282,-500.0,0.00023013,2]
[332506016,1721278298292,-500.0,0.00023013,2]
[332506017,1721278298302,-500.0,0.00023013,2]
[332506018,1721278298312,-1422.17,0.00023013,2]
[332506019,1721278298322,-1493.13,0.00023013,2]
[332506020,1721278298332,-500.0,0.00023013,2]
[332506021,1721278298342,-500.0,0.00023013,2]
[332506022,1721278298351,-500.0,0.00023013,2]
[332506023,1721278298363,-563.05,0.00023013,2]
[332506024,1721278298373,-5588.55,0.00023013,2]
[332506025,1721278298383,-642.49562375,0.00023013,2]
[332506026,1721278298393,-500.0,0.00023013,2]
[332506027,1721278298404,-681.21,0.00023013,2]
[332506028,1721278298415,-500.0,0.00023013,2]
[332506029,1721278298425,-500.0,0.00023013,2]
[332506030,1721278298435,-747.32,0.00023013,2]
[332506031,1721278298446,-562.13,0.00023013,2]
[332506032,1721278298456,-500.0,0.00023013,2]
[332506033,1721278298467,-364.21030584,0.00023013,2]
[332506034,1721278298476,-1257.47,0.00023013,2]
[332506035,1721278298487,-500.0,0.00023013,2]
[332506036,1721278298497,-500.0,0.00023013,2]
[332506037,1721278298507,-500.0,0.00023013,2]
[332506038,1721278298517,-927.3,0.00023013,2]
[332506039,1721278298527,-655.14,0.00023013,2]
[332506040,1721278298537,-500.0,0.00023013,2]
[332506041,1721278298548,-3093.4,0.00023013,2]
[332506042,1721278298558,-500.0,0.00023013,2]
[332506043,1721278298569,-500.0,0.00023013,2]
[332506044,1721278298579,-1461.68,0.00023013,2]
[332506045,1721278298588,-783.52,0.00023013,2]
[332506046,1721278298599,-500.0,0.00023013,2]
[332506047,1721278298609,-633.02,0.00023013,2]
[332506048,1721278298618,-1310.21,0.00023013,2]
[332506049,1721278298628,-500.0,0.00023013,2]
[332506050,1721278298638,-727.58,0.00023013,2]
[332506051,1721278298648,-7119.89,0.00023013,2]
[332506052,1721278298658,-11463.56,0.00023013,2]
[332506053,1721278298668,-1098.77,0.00023013,2]
[332506054,1721278298678,-634.9,0.00023013,2]
[332506055,1721278298688,-3682.06,0.00023013,2]
[332506056,1721278298698,-899.91,0.00023013,2]
[332506057,1721278298708,-1397.74,0.00023013,2]
[332506058,1721278298718,-500.0,0.00023013,2]
[332506059,1721278298727,-685.12,0.00023013,2]
[332506060,1721278298738,-500.0,0.00023013,2]
[332506061,1721278299110,-1434.55,0.00023013,2]
[332506062,1721278299120,-822.29,0.00023013,2]
[332506063,1721278299131,-4073.01,0.00023013,2]
[332506064,1721278299143,-500.0,0.00023013,2]
[332506065,1721278299152,-896.24,0.00023013,2]
[332506066,1721278299162,-846.23,0.00023013,2]
[332506067,1721278299171,-837.4,0.00023013,2]
[332506068,1721278299181,-501.49318378,0.00023013,2]
[332506069,1721278299191,-927.88,0.00023013,2]
[332506070,1721278299201,-500.0,0.00023013,2]
[332506071,1721278299211,-500.0,0.00023013,2]
[332506072,1721278299220,-779.86,0.00023013,2]
[332506073,1721278299230,-693.74,0.00023013,2]
[332506074,1721278299240,-500.0,0.00023013,2]
[332506075,1721278299249,-150.16504177,0.00023013,2]
[332506076,1721278299259,-500.0,0.00023013,2]
[332506077,1721278299269,-793.21,0.00023013,2]
[332506078,1721278299279,-1362.68,0.00023013,2]
[332506079,1721278299289,-961.59,0.00023013,2]
[332506080,1721278299299,-500.0,0.00023013,2]
[332506081,1721278299310,-500.0,0.00023013,2]
[332506082,1721278299320,-1316.54,0.00023013,2]
[332506083,1721278299330,-500.0,0.00023013,2]
[332506084,1721278299340,-966.8,0.00023013,2]
[332506085,1721278299349,-1005.28,0.00023013,2]
[332506086,1721278299359,-592.1,0.00023013,2]
[332506087,1721278299368,-667.39,0.00023013,2]
[332506088,1721278299378,-500.0,0.00023013,2]
[332506089,1721278299387,-500.0,0.00023013,2]
[332506090,1721278299396,-886.95,0.00023013,2]
[332506091,1721278299407,-1086.23,0.00023013,2]
[332506092,1721278299417,-1843.41,0.00023013,2]
[332506093,1721278299427,-500.0,0.00023013,2]
[332506094,1721278299438,-9749.46,0.00023013,2]
[332506095,1721278299447,-500.0,0.00023013,2]
[332506096,1721278299457,-500.0,0.00023013,2]
[332506097,1721278299467,-1025.51,0.00023013,2]
[332506098,1721278299477,-846.53,0.00023013,2]
[332506099,1721278299487,-500.0,0.00023013,2]
[332506100,1721278299496,-1809.01,0.00023013,2]
[332506101,1721278299506,-500.0,0.00023013,2]
[332506102,1721278299516,-873.09,0.00023013,2]
[332506103,1721278299526,-500.0,0.00023013,2]
[332506104,1721278299535,-512.72696198,0.00023013,2]
[332506105,1721278299545,-500.0,0.00023013,2]
[332506106,1721278299556,-706.38,0.00023013,2]
[332506107,1721278299566,-552.29,0.00023013,2]
[332506108,1721278299576,-500.0,0.00023013,2]
[332506109,1721278299586,-735.15,0.00023013,2]
[332506110,1721278299596,-500.0,0.00023013,2]
[332506111,1721278299606,-527.0210717,0.00023013,2]
[332506112,1721278299619,-500.0,0.00023013,2]
[332506113,1721278299629,-1004.02,0.00023013,2]
[332506114,1721278299639,-500.0,0.00023013,2]
[332506115,1721278299650,-500.0,0.00023013,2]
[332506116,1721278299660,-590.77,0.00023013,2]
[332506117,1721278299670,-553.09,0.00023013,2]
[332506118,1721278299680,-900.46,0.00023013,2]
[332506119,1721278299690,-781.98,0.00023013,2]
[332506120,1721278299700,-500.0,0.00023013,2]
[332506121,1721278299710,-1000.0,0.00023013,15]
[332506122,1721278299720,-759.02,0.00023013,2]
[332506123,1721278299730,-501.0,0.00023013,2]
[332506124,1721278299740,-500.0,0.00023013,2]
[332506125,1721278299750,-501.94,0.00023013,2]
[332506126,1721278299759,-500.0,0.00023013,2]
[332506127,1721278299769,-1091.46,0.00023013,2]
[332506128,1721278299779,-538.07,0.00023013,2]
[332506129,1721278299788,-500.0,0.00023013,2]
[332506130,1721278299798,-4087.93,0.00023013,2]
[332506131,1721278299808,-500.0,0.00023013,2]
[332506132,1721278299818,-500.0,0.00023013,2]
[332506133,1721278299828,-1661.4,0.00023013,2]
[332506134,1721278299838,-759.84,0.00023013,2]
[332506135,1721278299847,-3834.72,0.00023013,2]
[332506136,1721278299860,-500.0,0.00023013,2]
[332506137,1721278299870,-500.0,0.00023013,2]
[332506138,1721278299880,-500.0,0.00023013,2]
[332506139,1721278299890,-589.26,0.00023013,2]
[332506140,1721278299902,-576.51,0.00023013,2]
[332506141,1721278299912,-500.0,0.00023013,2]
[332506142,1721278299922,-640.95,0.00023013,2]
[332506143,1721278299932,-534.97506345,0.00023013,2]
[332506144,1721278299943,-660.07,0.00023013,2]
[332506145,1721278299953,-2551.4,0.00023013,2]
[332506146,1721278299963,-500.0,0.00023013,2]
[332506147,1721278299973,-724.54,0.00023013,2]
[332506148,1721278299983,-521.48,0.00023013,2]
[332506149,1721278299993,-830.24,0.00023013,2]
[332506150,1721278300003,-500.0,0.00023013,2]
[332506151,1721278300013,-523.95,0.00023013,2]
[332506152,1721278300023,-500.0,0.00023013,2]
[332506153,1721278300031,-500.0,0.00023013,2]
[332506154,1721278300041,-634.54089274,0.00023013,2]
[332506155,1721278300054,-500.0,0.00023013,2]
[332506156,1721278300063,-158.933656,0.00023013,7]
[332506157,1721278300073,-1771.83,0.00023013,2]
[332506158,1721278300082,-832.84,0.00023013,2]
[332506159,1721278300092,-500.0,0.00023013,2]
[332506160,1721278300102,-1864.33,0.00023013,2]
[332506161,1721278300113,-500.0,0.00023013,2]
[332506162,1721278300123,-151.0,0.00023013,7]
[332506163,1721278300135,-500.0,0.00023013,2]
[332506164,1721278300147,-827.36,0.00023013,2]
[332506165,1721278300157,-500.0,0.00023013,2]
[332506166,1721278300167,-660.97,0.00023013,2]
[332506167,1721278300177,-158.933656,0.00023013,7]
[332506168,1721278300187,-1084.09,0.00023013,2]
[332506169,1721278300197,-500.0,0.00023013,2]
[332506170,1721278300207,-790.22,0.00023013,2]
[332506171,1721278300217,-690.37,0.00023013,2]
[332506172,1721278300227,-850.78,0.00023013,2]
[332506173,1721278300237,-1069.06,0.00023013,2]
[332506174,1721278300247,-625.18,0.00023013,2]
[332506175,1721278300257,-821.43,0.00023013,2]
[332506176,1721278300267,-531.93,0.00023013,2]
[332506177,1721278300277,-500.0,0.00023013,2]
[332506178,1721278300287,-835.04,0.00023013,2]
[332506179,1721278300297,-500.0,0.00023013,2]
[332506180,1721278300307,-500.0,0.00023013,2]
[332506181,1721278300317,-1014.65,0.00023013,2]
[332506182,1721278300327,-1687.7,0.00023013,2]
[332506183,1721278300336,-500.0,0.00023013,2]
[332506184,1721278300346,-450.700224,0.00023013,7]
[332506185,1721278300356,-1534.11,0.00023013,2]
[332506186,1721278300367,-194.531904,0.00023013,7]
[332506187,1721278300377,-2696.799558,0.00023013,7]
[332506188,1721278300387,-693.0,0.00023013,2]
[332506189,1721278300397,-450.700224,0.00023013,7]
[332506190,1721278300407,-691.63,0.00023013,2]
[332506191,1721278300417,-2696.799558,0.00023013,7]
[332506192,1721278300427,-500.0,0.00023013,2]
[332506193,1721278300436,-602.58,0.00023013,2]
[332506194,1721278300447,-606.52,0.00023013,2]
[332506195,1721278300458,-500.0,0.00023013,2]
[332506196,1721278300468,-793.77,0.00023013,2]
[332506197,1721278300478,-418.828348,0.00023013,7]
[332506198,1721278300487,-1216.98,0.00023013,2]
[332506199,1721278300496,-678.38,0.00023013,2]
[332506200,1721278300506,-514.69,0.00023013,2]
[332506201,1721278300516,-2005.3,0.00023013,2]
[332506202,1721278300526,-500.0,0.00023013,2]
[332506203,1721278300535,-418.828348,0.00023013,7]
[332506204,1721278300544,-505.46823838,0.00023013,2]
[332506205,1721278300554,-500.0,0.00023013,2]
[332506206,1721278300564,-1929.61,0.00023013,2]
[332506207,1721278300575,-1580.89,0.00023013,2]
[332506208,1721278300585,-500.0,0.00023013,2]
[332506209,1721278300595,-1243.02,0.00023013,2]
[332506210,1721278300605,-500.0,0.00023013,2]
[332506211,1721278300618,-622.91,0.00023013,2]
[332506212,1721278300628,-707.3,0.00023013,2]
[332506213,1721278300638,-1663.83,0.00023013,2]
[332506214,1721278300649,-1060.24,0.00023013,2]
[332506215,1721278300659,-1036.78,0.00023013,2]
[332506216,1721278300669,-958.75,0.00023013,2]
[332506217,1721278300679,-500.0,0.00023013,2]
[332506218,1721278300690,-1305.9,0.00023013,2]
[332506219,1721278300700,-151.0,0.00023013,7]
[332506220,1721278300711,-151.0,0.00023013,7]
[332506221,1721278300721,-500.0,0.00023013,2]
[332506222,1721278300731,-1828.43,0.00023013,2]
[332506223,1721278300741,-1235.49,0.00023013,2]
[332506224,1721278300751,-427.98781769,0.00023013,2]
[332506225,1721278300761,-918.04,0.00023013,2]
[332506226,1721278300771,-500.0,0.00023013,2]
[332506227,1721278300781,-151.0,0.00023013,7]
[332506228,1721278300791,-529.76,0.00023013,2]
[332506229,1721278300801,-500.0,0.00023013,2]
[332506230,1721278300811,-617.32,0.00023013,2]
[332506231,1721278300821,-8197.53,0.00023013,2]
[332506232,1721278300831,-946.22,0.00023013,2]
[332506233,1721278300841,-1390.05,0.00023013,2]
[332506234,1721278300851,-500.0,0.00023013,2]
[332506235,1721278300864,-500.0,0.00023013,2]
[332506236,1721278300873,-772.27,0.00023013,2]
[332506237,1721278300882,-500.0,0.00023013,2]
[332506238,1721278300892,-500.0,0.00023013,2]
[332506239,1721278300903,-622.25776616,0.00023013,2]
[332506240,1721278300913,-636.59,0.00023013,2]
[332506241,1721278300924,-773.6,0.00023013,2]
[332506242,1721278300934,-500.0,0.00023013,2]
[332506243,1721278300945,-500.0,0.00023013,2]
[332506244,1721278300955,-1331.79,0.00023013,2]
[332506245,1721278300964,-1627.91,0.00023013,2]
[332506246,1721278300974,-1293.15,0.00023013,2]
[332506247,1721278300984,-500.0,0.00023013,2]
[332506248,1721278300994,-877.01,0.00023013,2]
[332506249,1721278301004,-2522.6,0.00023013,2]
[332506250,1721278301014,-500.0,0.00023013,2]
[332506251,1721278301023,-614.97,0.00023013,2]
[332506252,1721278301034,-151.0,0.00023013,7]
[332506253,1721278301044,-500.0,0.00023013,2]
[332506254,1721278301056,-218.46117214,0.00023013,2]
[332506255,1721278301067,-1546.41,0.00023013,2]
[332506256,1721278301077,-832.04,0.00023013,2]
[332506257,1721278301087,-1780.82,0.00023013,2]
[332506258,1721278301098,-500.0,0.00023013,2]
[332506259,1721278301110,-884.93,0.00023013,2]
[332506260,1721278301120,-316.07607291,0.00023013,2]
[332506261,1721278301130,-500.0,0.00023013,2]
[332506262,1721278301140,-707.05,0.00023013,2]
[332506263,1721278301150,-500.0,0.00023013,2]
[332506264,1721278301160,-151.0,0.00023013,7]
[332506265,1721278301170,-1691.33,0.00023013,2]
[332506266,1721278301180,-823.65,0.00023013,2]
[332506267,1721278301190,-805.79,0.00023013,2]
[332506268,1721278301199,-500.0,0.00023013,2]
[332506269,1721278301209,-500.0,0.00023013,2]
[332506270,1721278301219,-505.57374633,0.00023013,2]
[332506271,1721278301229,-709.27,0.00023013,2]
[332506272,1721278301239,-521.48,0.00023013,2]
[332506273,1721278301249,-771.1,0.00023013,2]
[332506274,1721278301259,-500.0,0.00023013,2]
[332506275,1721278301268,-500.0,0.00023013,2]
[332506276,1721278301278,-3003.8,0.00023013,2]
[332506277,1721278301288,-997.72,0.00023013,2]
[332506278,1721278301298,-617.11,0.00023013,2]
[332506279,1721278301307,-1220.75,0.00023013,2]
[332506280,1721278301317,-2547.74,0.00023013,2]
[332506281,1721278301327,-500.0,0.00023013,2]
[332506282,1721278301336,-756.98,0.00023013,2]
[332506283,1721278301346,-8313.01,0.00023013,2]
[332506284,1721278301355,-500.0,0.00023013,2]
[332506285,1721278301367,-526.88,0.00023013,2]
[332506286,1721278301377,-372.031596,0.00023013,7]
[332506287,1721278301386,-151.0,0.00023013,7]
[332506288,1721278301396,-500.0,0.00023013,2]
[332506289,1721278301406,-557.85,0.00023013,2]
[332506290,1721278301416,-500.0,0.00023013,2]
[332506291,1721278301426,-189.55179278,0.00023013,2]
[332506292,1721278301435,-329.31836101,0.00023013,2]
[332506293,1721278301445,-500.0,0.00023013,2]
[332506294,1721278301455,-372.031596,0.00023013,7]
[332506295,1721278301465,-2903.62,0.00023013,2]
[332506296,1721278301552,-1310.82,0.00023013,2]
[332506297,1721278301562,-151.0,0.00023013,7]
[332506298,1721278301572,-500.0,0.00023013,2]
[332506299,1721278301581,-500.0,0.00023013,2]
[332506300,1721278301592,-1227.17,0.00023013,2]
[332506301,1721278301601,-1313.57,0.00023013,2]
[332506302,1721278301612,-849.08,0.00023013,2]
[332506303,1721278301622,-500.0,0.00023013,2]
[332506304,1721278301631,-615.96,0.00023013,2]
[332506305,1721278301641,-724.44,0.00023013,2]
[332506306,1721278301651,-518.96,0.00023013,2]
[332506307,1721278301660,-924.97,0.00023013,2]
[332506308,1721278301669,-500.0,0.00023013,2]
[332506309,1721278301679,-3893.82,0.00023013,2]
[332506310,1721278301690,-523.83,0.00023013,2]
[332506311,1721278301699,-501.03155993,0.00023013,2]
[332506312,1721278301709,-500.0,0.00023013,2]
[332506313,1721278301719,-206.83723812,0.00023013,2]
[332506314,1721278301729,-500.0,0.00023013,2]
[332506315,1721278301739,-4415.18,0.00023013,2]
[332506316,1721278301748,-791.679712,0.00023013,7]
[332506317,1721278301758,-500.0,0.00023013,2]
[332506318,1721278301769,-671.84,0.00023013,2]
[332506319,1721278301779,-508.69,0.00023013,2]
[332506320,1721278301788,-993.35,0.00023013,2]
[332506321,1721278301798,-823.77,0.00023013,2]
[332506322,1721278301808,-791.679712,0.00023013,7]
[332506323,1721278301819,-745.46,0.00023013,2]
[332506324,1721278301830,-500.0,0.00023013,2]
[332506325,1721278301839,-4168.39,0.00023013,2]
[332506326,1721278301851,-500.0,0.00023013,2]
[332506327,1721278301861,-288.43833165,0.00023013,2]
[332506328,1721278301870,-853.51,0.00023013,2]
[332506329,1721278301879,-517.92,0.00023013,2]
[332506330,1721278301889,-814.39,0.00023013,2]
[332506331,1721278301900,-500.0,0.00023013,2]
[332506332,1721278301910,-500.0,0.00023013,2]
[332506333,1721278301921,-500.0,0.00023013,2]
[332506334,1721278301930,-500.0,0.00023013,2]
[332506335,1721278301940,-2537.23,0.00023013,2]
[332506336,1721278301949,-1130.61,0.00023013,2]
[332506337,1721278301959,-682.12,0.00023013,2]
[332506338,1721278301968,-773.67,0.00023013,2]
[332506339,1721278301978,-959.84,0.00023013,2]
[332506340,1721278301987,-500.0,0.00023013,2]
[332506341,1721278301997,-938.53,0.00023013,2]
[332506342,1721278302007,-1800.16,0.00023013,2]
[332506343,1721278302016,-151.0,0.00023013,7]
[332506344,1721278302025,-1073.57,0.00023013,2]
[332506345,1721278302035,-500.0,0.00023181,2]
[332506346,1721278302044,-500.0,0.00023189,2]
[332506347,1721278302057,-500.0,0.00023198,2]
[332506348,1721278302067,-1684.62841716,0.000232,2]
[332506349,1721278302076,-500.0,0.00023207,2]
[332506350,1721278302085,-500.0,0.00023216,2]
[332506351,1721278302095,-500.0,0.00023225,2]
[332506352,1721278302104,-500.0,0.00023233,2]
[332506353,1721278302115,-500.0,0.00023242,2]
[332506354,1721278302125,-500.0,0.00023251,2]
[332506355,1721278302135,-500.0,0.0002326,2]
[332506356,1721278302144,-500.0,0.00023269,2]
[332506357,1721278302154,-500.0,0.00023277,2]
[332506358,1721278302163,-500.0,0.00023286,2]
[332506359,1721278302173,-500.0,0.00023287,2]
[332506360,1721278302182,-660.98,0.00023287,2]
[332506361,1721278302192,-421.44282347,0.00023287,2]
[332506362,1721278302201,-500.0,0.00023287,2]
[332506363,1721278302210,-563.88,0.00023287,2]
[332506364,1721278302220,-500.0,0.00023287,2]
[332506365,1721278302229,-671.28,0.00023287,2]
[332506366,1721278302238,-500.0,0.00023287,2]
[332506367,1721278302248,-500.0,0.00023287,2]
[332506368,1721278302257,-155.95559066,0.00023287,2]
[332506369,1721278302267,-500.0,0.00023287,2]
[332506370,1721278302276,-500.0,0.00023287,2]
[332506371,1721278302286,-1004.82,0.00023287,2]
[332506372,1721278302295,-1395.21,0.00023287,2]
[332506373,1721278302304,-615.75,0.00023287,2]
[332506374,1721278302314,-500.0,0.00023287,2]
[332506375,1721278302323,-500.0,0.00023287,2]
[332506376,1721278302333,-500.0,0.00023287,2]
[332506377,1721278302342,-500.0,0.00023287,2]
[332506378,1721278302351,-500.0,0.00023287,2]
[332506379,1721278302363,-500.0,0.00023287,2]
[332506380,1721278302373,-231.77874834,0.00023287,2]
[332506381,1721278302382,-922.3,0.00023287,2]
[332506382,1721278302391,-500.0,0.00023287,2]
[332506383,1721278302400,-500.0,0.00023287,2]
[332506384,1721278302411,-500.0,0.00023287,2]
[332506385,1721278302421,-500.0,0.00023287,2]
[332506386,1721278302431,-166.0562975,0.00023287,2]
[332506387,1721278302440,-1100.58,0.00023287,2]
[332506388,1721278302449,-500.0,0.00023287,2]
[332506389,1721278302458,-816.86,0.00023287,2]
[332506390,1721278302468,-842.54,0.00023287,2]
[332506391,1721278302477,-500.0,0.00023287,2]
[332506392,1721278302487,-500.0,0.00023287,2]
[332506393,1721278302496,-500.0,0.00023287,2]
[332506394,1721278302505,-500.0,0.00023287,2]
[332506395,1721278302515,-500.0,0.00023287,2]
[332506396,1721278302523,-500.0,0.00023287,2]
[332506397,1721278302533,-500.0,0.00023287,2]
[332506398,1721278302543,-500.0,0.00023287,2]
[332506399,1721278302553,-726.21,0.00023287,2]
[332506400,1721278302563,-747.29,0.00023287,2]
[332506401,1721278302572,-276.1131236,0.00023287,2]
[332506402,1721278302581,-500.0,0.00023287,2]
[332506403,1721278302591,-518.35,0.00023287,2]
[332506404,1721278302600,-500.0,0.00023287,2]
[332506405,1721278302609,-513.68,0.00023287,2]
[332506406,1721278302625,-912.57,0.00023287,2]
[332506407,1721278302634,-500.0,0.00023287,2]
[332506408,1721278302644,-500.0,0.00023287,2]
[332506409,1721278302653,-500.0,0.00023287,2]
[332506410,1721278302662,-715.61,0.00023287,2]
[332506411,1721278302671,-500.0,0.00023287,2]
[332506412,1721278302680,-500.0,0.00023287,2]
[332506413,1721278302690,-500.0,0.00023287,2]
[332506414,1721278302700,-500.0,0.00023287,2]
[332506415,1721278302709,-500.0,0.00023287,2]
[332506416,1721278302719,-230.46731203,0.00023287,2]
[332506417,1721278302728,-500.0,0.00023287,2]
[332506418,1721278302738,-500.0,0.00023287,2]
[332506419,1721278302747,-500.0,0.00023287,2]
[332506420,1721278302757,-500.0,0.00023287,2]
[332506421,1721278302766,-500.0,0.00023287,2]
[332506422,1721278302775,-500.0,0.00023287,2]
[332506423,1721278302785,-528.41,0.00023287,2]
[332506424,1721278302794,-500.0,0.00023287,2]
[332506425,1721278302805,-500.0,0.00023287,2]
[332506426,1721278302814,-1174.7,0.00023287,2]
[332506427,1721278302824,-50.27736349,0.00023287,2]
[332506428,1721278302857,-449.72263651,0.00023287,2]
[332506429,1721278302873,-500.0,0.00023287,2]
[332506430,1721278302882,-500.0,0.00023287,2]
[332506431,1721278302891,-500.0,0.00023287,2]
[332506432,1721278302901,-500.0,0.00023287,2]
[332506433,1721278302910,-510.57,0.00023287,2]
[332506434,1721278302919,-500.0,0.00023287,2]
[332506435,1721278302929,-675.6,0.00023287,2]
[332506436,1721278302940,-500.0,0.00023287,2]
[332506437,1721278302950,-233.82973858,0.00023287,2]
[332506438,1721278302962,-500.0,0.00023287,2]
[332506439,1721278302972,-500.0,0.00023287,2]